bitfinex-derivatives/quotes_ETHF0:USTF0_20250422
["timestamp","ask_amount","ask_price","bid_price","bid_amount"]
[1745331763580,1e-08,1646.9,1646.8,1.21408]
[1745331764277,1e-08,1646.9,1646.7,8.6784]
[1745331764481,1.21408,1646.8,1646.7,5.4706]
[1745331764680,1e-08,1646.9,1646.7,2.7144]
[1745331764979,1.21408,1646.8,1646.7,3.92856]
[1745331765173,1.31335542,1646.8,1646.7,3.92856]
[1745331765479,1.31335542,1646.8,1646.7,2.7144]
[1745331766182,7.63535542,1646.8,1646.7,2.7144]
[1745331766477,1.21416,1646.7,1646.6,0.00910718]
[1745331766672,1.31343542,1646.7,1646.6,0.00910718]
[1745331766877,9.08263542,1646.7,1646.6,0.00910718]
[1745331767075,9.54672572,1646.7,1646.6,0.00910718]
[1745331767283,18.50352572,1646.7,1646.6,1e-08]
[1745331767476,13.4042503,1646.7,1646.6,1e-08]
[1745331767683,18.50355333,1646.7,1646.6,1e-08]
[1745331768078,25.26812346,1646.7,1646.6,1e-08]
[1745331769187,25.26814125,1646.7,1646.6,1e-08]
[1745331770780,25.26813305,1646.7,1646.6,1e-08]
[1745331772784,20.26813305,1646.7,1646.6,1e-08]
[1745331773080,25.26813305,1646.7,1646.6,1e-08]
[1745331774077,25.16882043,1646.7,1646.6,1e-08]
[1745331774285,25.26813987,1646.7,1646.6,1e-08]
[1745331774780,1.21423,1646.6,1646.5,76.83244001]
[1745331775083,10.07234944,1646.6,1646.5,76.83244001]
[1745331775389,16.49787151,1646.6,1646.5,76.83244001]
[1745331775885,16.49787451,1646.6,1646.5,76.83244001]
[1745331776081,22.81987451,1646.6,1646.5,76.83244001]
[1745331778784,27.81987451,1646.6,1646.5,76.83244001]
[1745331779080,27.81987451,1646.6,1646.5,73.55924001]
[1745331779287,27.81987451,1646.6,1646.5,69.92061001]
[1745331779479,27.81987451,1646.6,1646.5,66.98626001]
[1745331780378,22.81987451,1646.6,1646.5,66.98626001]
[1745331780788,27.81988236,1646.6,1646.5,66.98626001]
[1745331781287,27.81988236,1646.6,1646.5,65.60167001]
[1745331781479,27.81988236,1646.6,1646.5,64.21617001]
[1745331781678,27.81988236,1646.6,1646.5,62.89552001]
[1745331782075,22.81987851,1646.6,1646.5,62.89552001]
[1745331782690,20.08987851,1646.6,1646.5,62.89552001]
[1745331783789,20.08986536,1646.6,1646.5,65.79662001]
[1745331785188,17.26886536,1646.6,1646.5,65.79662001]
[1745331785387,17.26886031,1646.6,1646.5,65.79662001]
[1745331785896,19.92826031,1646.6,1646.5,65.79662001]
[1745331786391,17.26886031,1646.6,1646.5,65.79662001]
[1745331787494,10.84333824,1646.6,1646.5,65.79662001]
[1745331788394,13.57314085,1646.6,1646.5,65.79662001]
[1745331788581,10.84334085,1646.6,1646.5,65.79662001]
[1745331788780,6.42131085,1646.6,1646.5,72.01092001]
[1745331789293,1.31354085,1646.6,1646.5,65.79662001]
[1745331790184,6.42131085,1646.6,1646.5,72.01092001]
[1745331790385,1.21412,1646.8,1646.6,1.21418]
[1745331790688,1.67229926,1646.9,1646.7,3.94489]
[1745331790893,1.67229926,1646.9,1646.8,2.8057]
[1745331791196,7.99423926,1646.9,1646.8,2.8057]
[1745331791385,8.09275483,1646.9,1646.8,2.8057]
[1745331791995,11.30055483,1646.9,1646.8,2.8057]
[1745331792495,1.21408,1646.8,1646.7,2.7308]
[1745331792798,1.31260693,1646.8,1646.7,2.7308]
[1745331792981,4.19110693,1646.8,1646.7,2.7308]
[1745331793183,10.51310693,1646.8,1646.7,2.7308]
[1745331793986,1.21423,1646.6,1646.5,65.73312001]
[1745331794188,10.84256411,1646.6,1646.5,65.73312001]
[1745331794800,17.38537555,1646.6,1646.5,59.20500915]
[1745331795692,20.05844144,1646.6,1646.5,59.20500915]
[1745331795898,20.15699503,1646.6,1646.5,59.20500915]
[1745331797493,20.15699726,1646.6,1646.5,59.20500915]
[1745331798296,20.15699726,1646.6,1646.5,62.00020915]
[1745331798688,20.15699726,1646.6,1646.5,59.20500915]
[1745331799088,20.15699602,1646.6,1646.5,59.20500915]
[1745331800691,20.05844144,1646.6,1646.5,59.20500915]
[1745331800999,20.15699354,1646.6,1646.5,59.20500915]
[1745331801197,20.15699354,1646.6,1646.5,62.10530915]
[1745331801688,20.15699354,1646.6,1646.5,59.20500915]
[1745331802497,20.15699326,1646.6,1646.5,61.97920915]
[1745331803000,20.15699268,1646.6,1646.5,61.97920915]
[1745331803597,16.17116268,1646.6,1646.5,61.97920915]
[1745331803802,6.42055124,1646.6,1646.5,73.64170915]
[1745331804201,0.09855124,1646.6,1646.5,73.64170915]
[1745331804495,0.09852375,1646.7,1646.6,1.21423]
[1745331804699,1.31268449,1646.7,1646.6,3.468]
[1745331804892,0.09852449,1646.7,1646.6,8.468]
[1745331805091,0.09852449,1646.7,1646.6,4.68223]
[1745331805396,6.42052449,1646.7,1646.6,4.68223]
[1745331805595,7.63468449,1646.7,1646.6,3.468]
[1745331806397,7.63468449,1646.7,1646.6,6.1131]
[1745331806898,16.9558217,1646.7,1646.6,6.1131]
[1745331807697,16.95583717,1646.7,1646.6,6.1131]
[1745331810300,14.32023717,1646.7,1646.6,6.1131]
[1745331810794,6.42053996,1646.7,1646.6,6.1131]
[1745331810999,7.63468687,1646.7,1646.6,6.1131]
[1745331812004,6.42052687,1646.7,1646.6,6.1131]
[1745331812600,6.42052504,1646.7,1646.6,6.1131]
[1745331813303,7.63468512,1646.7,1646.6,6.1131]
[1745331814004,14.28065496,1646.7,1646.6,6.1131]
[1745331814206,17.09376498,1646.7,1646.6,3.468]
[1745331815095,28.17176498,1646.7,1646.6,1.70472]
[1745331815407,1.2143,1646.5,1646.4,3.47710718]
[1745331815607,4.52063514,1646.5,1646.4,3.47710718]
[1745331815803,10.97658426,1646.5,1646.4,3.47710718]
[1745331816307,17.29858447,1646.5,1646.4,3.47710718]
[1745331816808,22.29858447,1646.5,1646.4,3.47710718]
[1745331817009,22.29858447,1646.5,1646.4,2.25512718]
[1745331817308,24.95671339,1646.5,1646.4,2.25512718]
[1745331817506,1.21445,1646.3,1646.2,78.477]
[1745331817805,4.52082269,1646.3,1646.2,78.477]
[1745331818107,17.24057404,1646.3,1646.2,78.477]
[1745331818310,24.99727404,1646.3,1646.2,3.468]
[1745331818603,24.99727404,1646.3,1646.0,3.468]
[1745331818604,3.03633,1646.2,1646.0,3.468]
[1745331818807,4.52097269,1646.1,1646.0,3.468]
[1745331819017,11.52515062,1646.1,1646.0,3.468]
[1745331819220,17.84715062,1646.1,1646.0,3.468]
[1745331819424,16.63255062,1646.1,1646.0,3.468]
[1745331819612,6.42059138,1646.1,1646.0,8.468]
[1745331820212,0.09859138,1646.1,1646.0,8.468]
[1745331820514,0.09859138,1646.1,1646.0,6.3514]
[1745331820718,4.52096919,1646.1,1646.0,6.3514]
[1745331820921,11.45562583,1646.1,1646.0,6.3514]
[1745331821108,17.77762583,1646.1,1646.0,9.0845]
[1745331821308,20.60772583,1646.1,1646.0,3.468]
[1745331822219,20.60774895,1646.1,1646.0,3.468]
[1745331826616,1.21482,1645.8,1645.7,2.7331]
[1745331826918,4.52121231,1645.8,1645.7,6.2021]
[1745331827123,10.9500315,1645.8,1645.7,6.2021]
[1745331828112,17.2720315,1645.8,1645.7,6.2021]
[1745331830421,16.0572115,1645.8,1645.7,6.2021]
[1745331830724,17.2720315,1645.8,1645.7,6.2021]
[1745331831024,17.2720315,1645.8,1645.7,3.469]
[1745331831426,19.9316315,1645.8,1645.7,3.469]
[1745331831826,22.6619315,1645.8,1645.7,3.469]
[1745331833725,22.66194517,1645.8,1645.7,3.469]
[1745331835228,22.56333919,1645.8,1645.7,3.469]
[1745331835423,22.6619455,1645.8,1645.7,3.469]
[1745331835623,1.21504,1645.5,1645.4,78.477]
[1745331835823,4.52144631,1645.5,1645.4,78.477]
[1745331836023,7.28554631,1645.5,1645.4,78.477]
[1745331836321,1.21526,1645.2,1645.1,2.855]
[1745331836520,1.21526,1645.2,1645.1,6.317]
[1745331836521,4.52166631,1645.2,1645.1,6.317]
[1745331836928,4.52169118,1645.2,1645.1,6.317]
[1745331837122,10.84369118,1645.2,1645.1,3.462]
[1745331837822,10.84369118,1645.2,1645.1,6.317]
[1745331839328,9.62843118,1645.2,1645.1,12.53234]
[1745331839528,9.62843118,1645.2,1645.1,11.317]
[1745331839722,9.62843118,1645.2,1645.1,12.53234]
[1745331840023,9.62842202,1645.2,1645.1,12.53234]
[1745331840224,0.00910718,1645.3,1645.1,12.53234]
[1745331840225,0.00910718,1645.3,1645.2,1.21526]
[1745331840429,0.10771761,1645.3,1645.2,3.97336]
[1745331840623,0.10771761,1645.3,1645.2,11.77796]
[1745331841524,0.00910718,1645.3,1645.2,14.98576]
[1745331842025,3.2078,1645.6,1645.5,1.21504]
[1745331842225,3.30639846,1645.6,1645.5,4.67804]
[1745331842424,0.09859846,1645.6,1645.5,4.67804]
[1745331842624,0.09859846,1645.6,1645.5,9.67804]
[1745331843425,0.00910718,1645.7,1645.6,1.21497]
[1745331843619,0.10769884,1645.7,1645.6,4.02147]
[1745331843834,0.10769884,1645.7,1645.6,5.5619]
[1745331844024,1.32258884,1645.7,1645.6,5.5619]
[1745331844323,9.63749884,1645.7,1645.6,5.5619]
[1745331844524,9.63749884,1645.7,1645.6,6.77687]
[1745331844733,9.63749884,1645.7,1645.6,5.5619]
[1745331845124,0.10769884,1645.7,1645.6,5.5619]
[1745331845325,3.31549884,1645.7,1645.6,8.4825]
[1745331845529,0.10769884,1645.7,1645.6,9.69747]
[1745331846129,0.10769884,1645.7,1645.6,14.69747]
[1745331846630,0.10769884,1645.7,1645.6,9.69747]
[1745331847227,0.10769884,1645.7,1645.6,14.69747]
[1745331847726,0.10769884,1645.7,1645.6,9.69747]
[1745331848131,0.10768915,1645.7,1645.6,9.69747]
[1745331848324,0.10768915,1645.7,1645.6,14.69747]
[1745331848519,0.00910718,1645.7,1645.6,14.69747]
[1745331848723,0.10768956,1645.7,1645.6,14.69747]
[1745331849434,0.10768956,1645.7,1645.6,9.69747]
[1745331851729,0.00910718,1645.7,1645.6,9.69747]
[1745331852433,3.2078,1646.1,1645.8,1.21479]
[1745331852736,7.66529903,1646.0,1645.9,6.2293]
[1745331853531,0.09857203,1646.0,1645.9,6.2293]
[1745331853836,1.31324203,1646.0,1645.9,3.462]
[1745331854036,10.82846866,1646.0,1645.9,3.462]
[1745331854336,17.15046866,1646.0,1645.9,3.462]
[1745331854733,17.15046866,1646.0,1645.9,6.3263]
[1745331856838,17.15046866,1646.0,1645.9,3.462]
[1745331857343,15.93579866,1646.0,1645.9,3.462]
[1745331857541,15.93579866,1646.0,1645.9,6.261]
[1745331857740,15.93579866,1646.0,1645.9,7.47575]
[1745331857741,13.10589866,1646.0,1645.9,7.47575]
[1745331858235,3.21690718,1646.1,1646.0,1.21467]
[1745331858429,3.21690718,1646.1,1646.0,6.87157]
[1745331858430,0.10766852,1646.1,1646.0,6.87157]
[1745331858635,0.10766852,1646.1,1646.0,9.78877]
[1745331859234,0.10766852,1646.1,1646.0,14.78877]
[1745331859642,0.00910718,1646.1,1646.0,14.78877]
[1745331860036,0.00910718,1646.1,1646.0,9.78877]
[1745331860434,0.10766294,1646.1,1646.0,9.78877]
[1745331861239,1.32226294,1646.1,1646.0,8.5741]
[1745331861543,1.21467,1646.0,1645.9,3.462]
[1745331861834,1.31322576,1646.0,1645.9,6.4089]
[1745331862043,4.07072576,1646.0,1645.9,3.462]
[1745331862247,10.39272576,1646.0,1645.9,3.462]
[1745331863040,10.39272576,1646.0,1645.9,3.44378565]
[1745331863342,10.39275797,1646.0,1645.9,3.44378565]
[1745331863845,17.30018793,1646.0,1645.9,3.44378565]
[1745331864440,22.30018793,1646.0,1645.9,3.44378565]
[1745331864948,1.21486,1645.8,1645.7,3.454]
[1745331865237,4.50684797,1645.8,1645.7,3.454]
[1745331865642,16.94870507,1645.8,1645.7,3.454]
[1745331865841,20.74824507,1645.8,1645.4,0.00910718]
[1745331866041,4.42284,1645.5,1645.4,0.00910718]
[1745331866343,4.52142797,1645.5,1645.4,0.00910718]
[1745331866544,11.29038212,1645.5,1645.4,0.00910718]
[1745331867242,17.61238212,1645.5,1645.4,0.00910718]
[1745331867748,16.39734212,1645.5,1645.4,0.00910718]
[1745331867937,16.39734212,1645.5,1645.4,2.91190718]
[1745331868244,17.61238212,1645.5,1645.4,0.00910718]
[1745331868440,9.62841978,1645.5,1645.4,0.00910718]
[1745331868638,9.62841978,1645.5,1645.4,2.73120718]
[1745331869345,9.62841978,1645.5,1645.4,3.94632718]
[1745331869346,6.05731978,1645.5,1645.4,3.94632718]
[1745331869538,3.30641978,1645.5,1645.4,3.94632718]
[1745331870548,0.09861978,1645.5,1645.4,3.94632718]
[1745331871548,2.7509,1645.6,1645.5,1.21504]
[1745331871750,4.06446786,1645.6,1645.5,2.8601]
[1745331872047,2.84949786,1645.6,1645.4,0.00910718]
[1745331872248,0.09859786,1645.5,1645.4,4.08426718]
[1745331872546,3.2078,1645.5,1645.4,0.00910718]
[1745331872744,4.52143459,1645.5,1645.4,0.00910718]
[1745331872939,3.30639459,1645.5,1645.4,0.00910718]
[1745331873249,0.09860114,1645.5,1645.4,9.08432718]
[1745331873545,3.2078,1645.9,1645.6,3.03726]
[1745331873746,0.09858281,1645.8,1645.7,7.52894]
[1745331874251,0.00910718,1646.1,1645.7,11.3141]
[1745331874444,1.21475,1645.9,1645.8,5.6867]
[1745331874648,6.87153764,1646.0,1645.9,1.21475]
[1745331874941,7.32891718,1646.1,1645.9,3.9654]
[1745331875347,0.09780157,1646.0,1645.9,1.2147]
[1745331875747,1.31247157,1646.0,1645.9,1.2147]
[1745331876048,1.21475,1645.9,1645.8,5.7338]
[1745331876240,1.31255157,1645.9,1645.8,5.7338]
[1745331876440,1.31256112,1645.9,1645.8,5.7338]
[1745331876841,1.31256112,1645.9,1645.8,6.94862]
[1745331877042,1.31256112,1645.9,1645.8,5.7338]
[1745331877647,1.31256112,1645.9,1645.8,2.8266]
[1745331879051,1.21482,1645.8,1645.7,78.502]
[1745331879246,2.84331112,1645.8,1645.7,79.71689]
[1745331879456,0.09781112,1645.8,1645.7,79.71689]
[1745331879749,1.21482,1645.8,1645.7,78.502]
[1745331879956,4.0581336,1645.8,1645.7,78.502]
[1745331880338,2.8433136,1645.8,1645.7,78.502]
[1745331880948,0.0978136,1645.8,1645.7,79.71689]
[1745331881151,4.0933,1646.0,1645.8,1.21482]
[1745331881450,0.09781108,1645.9,1645.8,1.21482]
[1745331882546,1.31249108,1646.0,1645.8,1.21482]
[1745331882751,1.21468,1646.0,1645.8,1.21482]
[1745331882939,4.09328,1646.0,1645.8,1.21482]
[1745331883145,0.09780472,1645.9,1645.8,1.21482]
[1745331884052,2.8786,1646.0,1645.9,1.21475]
[1745331884239,2.97640576,1646.0,1645.7,81.53913]
[1745331884440,4.09327,1646.0,1645.8,1.21477]
[1745331885153,10.41527,1646.0,1645.8,1.21477]
[1745331885357,10.41533,1646.0,1645.8,1.21477]
[1745331885544,0.09780675,1645.9,1645.8,1.21477]
[1745331885857,0.09780675,1645.9,1645.7,78.502]
[1745331885858,1.21482,1645.8,1645.7,78.502]
[1745331886051,4.08032675,1645.8,1645.7,78.502]
[1745331886449,4.08032675,1645.8,1645.7,79.71689]
[1745331886844,2.86550675,1645.8,1645.7,78.502]
[1745331887054,4.08032675,1645.8,1645.7,78.502]
[1745331887258,10.40232675,1645.8,1645.7,78.502]
[1745331888657,10.40232675,1645.8,1645.7,79.71689]
[1745331888849,10.40232675,1645.8,1645.7,82.45949]
[1745331889049,10.40232675,1645.8,1645.7,81.2446]
[1745331889450,6.41980675,1645.8,1645.7,82.45949]
[1745331889650,6.41981378,1645.8,1645.7,82.45949]
[1745331890157,0.09781378,1645.8,1645.7,82.45949]
[1745331890552,4.15803378,1645.8,1645.7,82.45949]
[1745331890755,2.94321378,1645.8,1645.7,82.45949]
[1745331891253,9.26521378,1645.8,1645.7,82.45949]
[1745331891451,9.26521772,1645.8,1645.7,82.45949]
[1745331891754,3.21690718,1646.1,1646.0,1.21467]
[1745331891965,3.31471439,1646.1,1646.0,1.21467]
[1745331892655,3.31471439,1646.1,1646.0,3.93337]
[1745331892855,4.52931439,1646.1,1646.0,3.93337]
[1745331893055,3.31471439,1646.1,1646.0,3.93337]
[1745331893253,9.63671439,1646.1,1646.0,3.93337]
[1745331894153,3.31471439,1646.1,1646.0,3.93337]
[1745331894451,4.52930536,1646.1,1646.0,3.93337]
[1745331894651,7.47330536,1646.1,1646.0,3.93337]
[1745331894855,6.25870536,1646.1,1646.0,3.93337]
[1745331895452,3.31470536,1646.1,1646.0,3.93337]
[1745331895858,0.10690536,1646.1,1646.0,7.14117]
[1745331896051,2.8271,1646.4,1646.3,1.21445]
[1745331896252,6.0399,1646.6,1646.4,1.21435]
[1745331896452,2.8321,1646.6,1646.5,1.2143]
[1745331896659,2.8271,1646.7,1646.6,1.21423]
[1745331897156,5.6615,1646.8,1646.7,1.21416]
[1745331897459,5.76760353,1646.8,1646.7,4.65916]
[1745331897763,6.98168627,1646.8,1646.7,4.65916]
[1745331897961,6.98168627,1646.8,1646.7,3.445]
[1745331898149,13.30368627,1646.8,1646.7,3.445]
[1745331898861,12.08960627,1646.8,1646.7,4.65916]
[1745331899359,12.08960683,1646.8,1646.7,4.65916]
[1745331899561,12.08960683,1646.8,1646.7,3.445]
[1745331899759,12.08960683,1646.8,1646.7,4.65916]
[1745331899963,12.08960683,1646.8,1646.7,3.445]
[1745331900462,12.08960683,1646.8,1646.7,4.65916]
[1745331901061,12.08961115,1646.8,1646.7,4.65916]
[1745331901258,12.08961115,1646.8,1646.7,3.445]
[1745331901662,13.30369115,1646.8,1646.7,3.445]
[1745331902059,18.30369115,1646.8,1646.7,3.445]
[1745331902267,25.26016764,1646.8,1646.7,3.445]
[1745331903160,1.21423,1646.6,1646.5,0.00910718]
[1745331903360,4.51903521,1646.6,1646.5,3.45310718]
[1745331904165,22.67574904,1646.6,1646.5,0.37061901]
[1745331904563,1.21459,1646.2,1645.9,2.9731]
[1745331904767,3.03605,1646.4,1646.2,3.444]
[1745331904768,1.21445,1646.3,1646.2,3.444]
[1745331905070,17.36129227,1646.3,1646.2,3.444]
[1745331905262,22.36129227,1646.3,1646.2,3.444]
[1745331906165,28.68329227,1646.3,1646.2,3.444]
[1745331906870,23.68329227,1646.3,1646.2,3.444]
[1745331908770,23.58624102,1646.3,1646.2,3.444]
[1745331908967,23.68329581,1646.3,1646.2,3.444]
[1745331909863,28.68329581,1646.3,1646.2,3.444]
[1745331910365,28.58624102,1646.3,1646.2,3.444]
[1745331910563,23.68330045,1646.3,1646.2,3.444]
[1745331911463,23.68330045,1646.3,1646.2,4.65853]
[1745331911464,19.61625045,1646.3,1646.2,4.65853]
[1745331911663,19.61625045,1646.3,1646.2,3.444]
[1745331911860,6.41905943,1646.3,1646.2,7.44203]
[1745331912168,4.43104718,1646.8,1646.2,15.4783]
[1745331912466,3.2078,1646.6,1646.3,2.7835]
[1745331912662,3.2078,1646.6,1646.4,2.7555]
[1745331912870,5.9467,1646.6,1646.5,2.7835]
[1745331913263,6.043679,1646.6,1646.5,2.7835]
[1745331913464,3.304779,1646.6,1646.5,3.9978]
[1745331913661,3.30406076,1646.6,1646.5,12.0271]
[1745331913861,3.2078,1646.6,1646.5,12.0271]
[1745331914064,0.00910718,1646.8,1646.5,10.8128]
[1745331914269,0.09625297,1646.7,1646.6,6.2355]
[1745331914467,3.21690718,1646.8,1646.6,7.44968]
[1745331914666,3.21690718,1646.8,1646.7,2.7905]
[1745331914968,0.10535726,1646.8,1646.7,2.7905]
[1745331915169,0.10535726,1646.8,1646.7,77.8035]
[1745331916464,1.31943726,1646.8,1646.7,77.8035]
[1745331916768,4.42167,1647.1,1646.8,1.21403]
[1745331917064,7.59044572,1647.0,1646.8,2.7569]
[1745331917269,1.21401,1646.9,1646.8,2.7569]
[1745331917466,7.40541,1646.9,1646.8,2.7569]
[1745331917872,7.50091752,1646.9,1646.8,2.7569]
[1745331918063,14.19008931,1646.9,1646.8,2.7569]
[1745331918263,1.21408,1646.8,1646.7,77.8662]
[1745331918566,1.30959352,1646.8,1646.7,77.8662]
[1745331918764,3.2078,1647.2,1646.7,86.074]
[1745331918965,4.42161,1647.2,1646.9,1.21398]
[1745331919168,6.92059466,1647.1,1647.0,7.51114]
[1745331919565,1.21355,1647.6,1647.3,1.21371]
[1745331919768,0.08780269,1647.5,1647.4,6.2882]
[1745331919969,0.08780269,1647.5,1647.4,7.50184]
[1745331920272,3.03442,1647.3,1646.7,76.22709]
[1745331920468,3.2078,1647.1,1646.8,6.27926751]
[1745331920664,1.21401,1646.9,1646.8,6.27926751]
[1745331920863,1.3087291,1646.9,1646.8,6.27926751]
[1745331921070,4.5165291,1646.9,1646.8,6.27926751]
[1745331921374,17.16212301,1646.9,1646.8,3.435]
[1745331923473,1.21408,1646.8,1646.7,75.02210718]
[1745331923774,1.3087991,1646.8,1646.7,78.45710718]
[1745331923975,10.45544631,1646.8,1646.7,78.45710718]
[1745331924174,16.77744631,1646.8,1646.7,78.45710718]
[1745331924676,21.77744631,1646.8,1646.7,78.45710718]
[1745331925769,21.77744631,1646.8,1646.7,3.09781145]
[1745331926065,1.21453,1646.2,1646.1,74.997]
[1745331926268,1.3092491,1646.2,1646.1,78.432]
[1745331926466,7.74729388,1646.2,1646.1,78.432]
[1745331926866,10.72999388,1646.2,1646.1,78.432]
[1745331927271,17.05199388,1646.2,1646.1,78.432]
[1745331928871,12.85476388,1646.2,1646.1,78.432]
[1745331929063,7.74729388,1646.2,1646.1,78.432]
[1745331929470,6.53276388,1646.2,1646.1,78.432]
[1745331929776,7.74729388,1646.2,1646.1,81.1818]
[1745331930170,6.53276388,1646.2,1646.1,81.1818]
[1745331930371,7.74729388,1646.2,1646.1,81.1818]
[1745331930771,6.53276388,1646.2,1646.1,81.1818]
[1745331931276,0.0947191,1646.2,1646.1,82.3964]
[1745331931472,0.0947191,1646.2,1646.1,87.3964]
[1745331931774,0.02340718,1646.3,1646.1,87.3964]
[1745331931970,0.02340718,1646.3,1646.2,2.7498]
[1745331932170,0.11816225,1646.3,1646.2,2.7498]
[1745331932370,0.10386225,1646.3,1646.2,3.96433]
[1745331933273,0.10386225,1646.3,1646.2,2.7498]
[1745331933479,0.10386225,1646.3,1646.2,3.96433]
[1745331934373,0.10386225,1646.3,1646.2,2.7498]
[1745331934879,0.10386225,1646.3,1646.2,3.96433]
[1745331935185,0.10386225,1646.3,1646.2,2.7498]
[1745331935376,0.10386225,1646.3,1646.2,3.96433]
[1745331935882,0.10386225,1646.3,1646.2,2.7498]
[1745331936380,1.3183089,1646.3,1646.2,2.7498]
[1745331936574,0.1038589,1646.3,1646.2,2.7498]
[1745331937077,1.3183089,1646.3,1646.2,2.7498]
[1745331937777,7.88038521,1646.3,1646.2,2.7498]
[1745331937977,1.21453,1646.2,1646.1,78.432]
[1745331938277,13.82056883,1646.2,1646.1,78.432]
[1745331939182,20.14258464,1646.2,1646.1,81.1686]
[1745331939779,20.14258464,1646.2,1646.1,78.432]
[1745331939977,22.81838464,1646.2,1646.1,78.432]
[1745331941181,22.81838534,1646.2,1646.1,78.432]
[1745331941372,22.8183809,1646.2,1646.1,78.432]
[1745331942275,27.8183809,1646.2,1646.1,64.86174937]
[1745331942873,1.21504,1645.5,1645.4,75.023]
[1745331943073,7.6318402,1645.5,1645.4,78.459]
[1745331943280,6.4168002,1645.5,1645.4,78.459]
[1745331944081,6.4168002,1645.5,1645.4,81.3139]
[1745331944277,0.0948002,1645.5,1645.4,81.3139]
[1745331944472,1.3098402,1645.5,1645.4,81.3139]
[1745331944877,0.0948002,1645.5,1645.4,81.3139]
[1745331945077,3.2078,1645.8,1645.7,1.21489]
[1745331945274,3.2078,1645.8,1645.6,1.21497]
[1745331945476,4.42262,1645.8,1645.7,2.8407]
[1745331945875,10.90457846,1645.8,1645.7,2.8407]
[1745331946071,10.9986513,1645.8,1645.7,2.8407]
[1745331946483,11.46166322,1645.8,1645.7,2.8407]
[1745331947076,1.21494,1645.7,1645.5,2.7583]
[1745331947277,1.30904284,1645.6,1645.5,5.599]
[1745331947577,6.43896617,1645.6,1645.3,0.00910718]
[1745331947782,1.21519,1645.3,1645.2,3.437]
[1745331947988,1.30926284,1645.3,1645.2,3.437]
[1745331948283,22.31120064,1645.3,1645.2,3.35130698]
[1745331950676,17.31120064,1645.3,1645.2,3.35130698]
[1745331950977,13.37781064,1645.3,1645.2,3.35130698]
[1745331951787,13.37781064,1645.3,1645.2,4.56656698]
[1745331951984,4.79381064,1645.3,1645.2,12.39806698]
[1745331952178,0.00910718,1645.4,1645.2,12.39806698]
[1745331952487,4.43202718,1645.4,1645.3,2.7953]
[1745331952883,6.33339465,1645.3,1645.0,2.69]
[1745331953184,6.33339465,1645.3,1645.1,6.2243]
[1745331953185,4.51643635,1645.2,1645.1,6.2243]
[1745331953480,9.634571,1645.2,1645.1,6.2243]
[1745331953681,6.426771,1645.2,1645.1,6.2243]
[1745331954077,12.74877305,1645.2,1645.1,6.2243]
[1745331954288,13.96403305,1645.2,1645.1,6.2243]
[1745331954678,12.74877305,1645.2,1645.1,6.2243]
[1745331955784,12.74877498,1645.2,1645.1,6.2243]
[1745331955988,13.96403498,1645.2,1645.1,6.2243]
[1745331956283,12.74877498,1645.2,1645.1,6.2243]
[1745331957990,17.17183498,1645.2,1645.1,6.2243]
[1745331958189,20.07403498,1645.2,1645.1,6.2243]
[1745331958784,20.07403498,1645.2,1645.1,3.429]
[1745331959088,20.07404351,1645.2,1645.1,3.429]
[1745331960982,18.85878351,1645.2,1645.1,3.429]
[1745331961186,17.17184351,1645.2,1645.1,3.429]
[1745331961387,15.95658351,1645.2,1645.1,3.429]
[1745331961791,15.95657659,1645.2,1645.1,3.429]
[1745331961996,15.95657659,1645.2,1645.1,6.1103]
[1745331962290,6.41538194,1645.2,1645.1,12.32564]
[1745331962487,1e-05,1645.3,1645.2,1.21526]
[1745331962684,6.0419,1645.9,1645.2,3.2078]
[1745331962884,0.09334399,1645.8,1645.6,1.21493]
[1745331963189,15.59666007,1645.8,1645.7,3.43]
[1745331963397,12.86016007,1645.8,1645.7,4.64489]
[1745331963582,6.41534399,1645.8,1645.7,3.43]
[1745331964389,9.15184399,1645.8,1645.7,3.43]
[1745331964594,16.17484559,1645.8,1645.7,3.43]
[1745331964895,13.43834559,1645.8,1645.7,4.64489]
[1745331965085,6.322,1645.8,1645.7,12.33529]
[1745331965285,0.00910718,1645.9,1645.8,1.21482]
[1745331965690,0.00910718,1645.9,1645.8,9.60542]
[1745331966193,0.00910718,1645.9,1645.8,6.39762]
[1745331966493,0.00910718,1645.9,1645.8,14.60542]
[1745331968188,0.00910718,1645.9,1645.8,9.60542]
[1745331968587,0.00910718,1645.9,1645.8,8.3906]
[1745331968998,2.87093009,1645.9,1645.8,9.60542]
[1745331969188,9.19293009,1645.9,1645.8,9.60542]
[1745331969800,6.42443009,1645.9,1645.8,9.60542]
[1745331970096,6.42443189,1645.9,1645.8,9.60542]
[1745331970299,6.33110718,1645.9,1645.8,9.60542]
[1745331971094,0.00910718,1645.9,1645.8,9.60542]
[1745331973091,0.00910718,1645.9,1645.8,8.3906]
[1745331973395,6.42442761,1645.9,1645.8,9.60542]
[1745331973993,1.21482,1645.8,1645.7,3.43]
[1745331974301,19.19882896,1645.8,1645.7,3.43]
[1745331974884,17.98400896,1645.8,1645.7,3.43]
[1745331975197,19.19885257,1645.8,1645.7,3.43]
[1745331975495,24.19885257,1645.8,1645.7,3.43]
[1745331975891,1.21489,1645.7,1645.6,73.34910718]
[1745331976091,13.45233404,1645.7,1645.6,73.34910718]
[1745331976293,25.21504532,1645.7,1645.6,72.97990718]
[1745331976592,25.21504532,1645.7,1645.6,69.94091078]
[1745331977094,25.21504532,1645.7,1645.6,66.90191438]
[1745331977294,20.21504532,1645.7,1645.6,63.86291798]
[1745331977500,25.21504532,1645.7,1645.6,63.86291798]
[1745331978284,25.21506789,1645.7,1645.6,3.43710718]
[1745331978792,25.21506789,1645.7,1645.6,0.39811078]
[1745331979000,3.03827,1645.2,1644.9,75.051]
[1745331979198,4.42321,1645.0,1644.9,78.48]
[1745331979406,1.30877661,1645.0,1644.9,78.48]
[1745331979589,9.55837654,1645.0,1644.9,78.48]
[1745331980096,15.88037654,1645.0,1644.9,78.48]
[1745331980792,19.08817654,1645.0,1644.9,78.48]
[1745331981696,20.30358654,1645.0,1644.9,78.48]
[1745331982391,25.30358654,1645.0,1644.9,78.48]
[1745331982989,20.30358654,1645.0,1644.9,78.48]